bitfinex-derivatives/quotes_SOLF0:USTF0_20250110
["timestamp","ask_amount","ask_price","bid_price","bid_amount"]
[1736518895776,19.37016126,188.9,188.85,7.17345645]
[1736518895978,19.37016126,188.9,188.75,26.54361771]
[1736518896278,1.5146,188.97,188.81,19.37016126]
[1736518896473,20.88476126,188.97,188.81,19.37016126]
[1736518896671,2.6465,188.94,188.89,2.6471]
[1736518896884,20.88476126,188.97,188.81,19.37016126]
[1736518897876,1.5146,188.97,188.84,19.37016126]
[1736518898066,1.5146,188.97,188.81,19.37016126]
[1736518898474,2.6466,188.93,188.81,19.37016126]
[1736518898679,1.5146,188.97,188.81,19.37016126]
[1736518898976,2.6467,188.92,188.85,2.6476]
[1736518899170,1.5146,188.97,188.81,19.37016126]
[1736518899682,19.37016126,188.95,188.78,20.98996126]
[1736518899876,19.37016126,188.92,188.78,1.6198]
[1736518900181,2.6472,188.89,188.84,2.6478]
[1736518900983,2.6473,188.88,188.83,2.6479]
[1736518901282,1.6189,188.87,188.75,19.37016126]
[1736518901876,2.6472,188.89,188.75,19.37016126]
[1736518902281,2.6472,188.89,188.84,2.6477]
[1736518903284,2.6473,188.88,188.84,2.6477]
[1736518903478,2.6473,188.88,188.83,2.6479]
[1736518903980,2.6473,188.88,188.84,2.6478]
[1736518904174,1.6189,188.91,188.75,19.37016126]
[1736518904584,1.6189,188.91,188.82,2.6481]
[1736518904779,1.6189,188.91,188.75,19.37016126]
[1736518904977,1.6189,188.91,188.85,2.6477]
[1736518905181,1.6189,188.91,188.78,19.37016126]
[1736518905779,2.6473,188.88,188.78,19.37016126]
[1736518905981,2.6473,188.88,188.75,19.37016126]
[1736518906180,1.6189,188.91,188.75,19.37016126]
[1736518906486,1.6449,188.96,188.83,19.37016126]
[1736518906690,1.6449,188.96,188.84,3.2199]
[1736518906985,19.37016126,189.01,188.93,2.6466]
[1736518907287,19.37016126,189.01,188.86,19.37016126]
[1736518907479,2.6461,188.97,188.92,2.6467]
[1736518907676,19.37016126,189.01,188.86,19.37016126]
[1736518907879,28.66726126,189.04,188.86,19.37016126]
[1736518908081,2.6456,189.01,188.89,19.37016126]
[1736518908288,28.66726126,189.04,188.89,19.37016126]
[1736518909788,2.6464,188.95,188.84,3.2199]
[1736518909989,19.37016126,189.01,188.85,19.37016126]
[1736518910383,19.37016126,188.98,188.84,3.2199]
[1736518910878,2.6468,188.92,188.84,3.2199]
[1736518911081,19.37016126,188.95,188.84,1.5676]
[1736518911279,19.37016126,188.92,188.77,1.6168]
[1736518911486,2.6477,188.85,188.8,2.6483]
[1736518911789,19.37016126,188.92,188.77,1.6168]
[1736518911984,2.6477,188.86,188.81,2.6481]
[1736518912183,2.6477,188.86,188.77,1.6168]
[1736518912877,19.37016126,188.92,188.77,1.6168]
[1736518913082,4.835,188.94,188.79,19.37016126]
[1736518913279,6.14,189.0,188.85,19.37016126]
[1736518913486,22.54386126,189.01,188.85,19.37016126]
[1736518913684,22.54386126,189.01,188.86,3.2674]
[1736518913883,1.5964,189.01,188.88,19.37016126]
[1736518914084,19.37016126,189.01,188.86,3.7486]
[1736518914278,1.5662,189.0,188.86,3.7486]
[1736518914478,2.6459,188.98,188.9,2.647]
[1736518914685,2.6459,188.98,188.86,3.7486]
[1736518914986,1.5662,189.0,188.88,19.37016126]
[1736518915788,2.646,188.98,188.93,2.6465]
[1736518915987,1.5662,189.0,188.86,3.7486]
[1736518916392,19.37016126,188.98,188.86,3.2674]
[1736518916986,19.37016126,188.98,188.82,19.37016126]
[1736518917286,19.37016126,188.95,188.81,3.1362]
[1736518917591,2.6471,188.9,188.85,2.6477]
[1736518917785,3.1673,188.94,188.85,2.6477]
[1736518917992,2.6472,188.89,188.85,2.6477]
[1736518918191,3.1673,188.94,188.86,2.6474]
[1736518918492,2.6469,188.91,188.81,3.1362]
[1736518918681,3.1673,188.94,188.81,3.1362]
[1736518919587,1.5662,189.0,188.85,19.37016126]
[1736518920586,2.6464,188.95,188.91,2.6467]
[1736518921291,2.6464,188.95,188.85,19.37016126]
[1736518921490,1.5662,189.0,188.85,19.37016126]
[1736518921990,2.6466,188.93,188.89,2.647]
[1736518922192,1.5662,189.0,188.85,19.37016126]
[1736518922493,2.6459,188.98,188.89,2.6471]
[1736518922791,1.5662,189.0,188.85,19.37016126]
[1736518923189,2.6462,188.96,188.92,2.6467]
[1736518923990,19.37016126,188.98,188.82,20.89336126]
[1736518924288,1.5662,189.0,188.82,1.5232]
[1736518924289,19.37016126,188.95,188.82,1.5232]
[1736518924493,19.37016126,188.95,188.85,2.6477]
[1736518924698,19.37016126,188.95,188.81,1.5182]
[1736518924895,1.6593,188.94,188.81,1.5182]
[1736518925091,2.647,188.9,188.86,2.6475]
[1736518925299,1.6593,188.94,188.78,1.5146]
[1736518925300,19.37016126,188.92,188.78,1.5146]
[1736518925593,2.6476,188.86,188.81,2.6482]
[1736518925794,1.6174,188.91,188.78,1.5146]
[1736518926095,2.647,188.9,188.86,2.6475]
[1736518926290,1.6174,188.91,188.79,19.37016126]
[1736518926495,6.14,188.95,188.82,19.37016126]
[1736518926991,1.5403,188.99,188.85,19.37016126]
[1736518927189,2.6463,188.96,188.92,2.6466]
[1736518927390,19.37016126,188.98,188.82,19.37016126]
[1736518927699,2.6466,188.93,188.87,2.6474]
[1736518927994,19.37016126,188.98,188.82,19.37016126]
[1736518928196,2.6466,188.93,188.88,2.6472]
[1736518928492,19.37016126,188.98,188.82,19.37016126]
[1736518928889,2.6469,188.91,188.86,2.6474]
[1736518929089,19.37016126,188.95,188.86,2.6474]
[1736518929391,2.6472,188.89,188.84,2.6477]
[1736518929693,19.37016126,188.95,188.79,19.37016126]
[1736518929894,2.6471,188.9,188.83,2.6479]
[1736518930193,19.37016126,188.95,188.79,19.37016126]
[1736518930495,2.6467,188.92,188.79,19.37016126]
[1736518930690,19.37016126,188.97,188.79,19.37016126]
[1736518931088,2.6471,188.9,188.86,2.6475]
[1736518931394,19.37016126,188.94,188.79,19.37016126]
[1736518931790,2.6472,188.89,188.85,2.6476]
[1736518932096,19.37016126,188.94,188.79,19.37016126]
[1736518932290,19.37016126,188.97,188.79,19.37016126]
[1736518932691,19.37016126,188.94,188.79,19.37016126]
[1736518933089,1.5403,188.99,188.78,1.5146]
[1736518933090,19.37016126,188.91,188.78,1.5146]
[1736518933289,1.5912,188.9,188.78,1.5146]
[1736518934189,1.5912,188.9,188.79,19.37016126]
[1736518934696,6.14,188.92,188.79,19.37016126]
[1736518935294,19.37016126,188.97,188.82,19.37016126]
[1736518935885,2.6467,188.93,188.82,19.37016126]
[1736518936397,3.1212,188.98,188.78,1.5146]
[1736518936398,3.1212,188.98,188.85,19.37016126]
[1736518936598,2.6463,188.95,188.91,2.6467]
[1736518937291,1.5912,188.98,188.85,19.37016126]
[1736518937495,1.5912,188.98,188.88,19.37016126]
[1736518937698,19.37016126,189.03,188.88,19.37016126]
[1736518937899,19.37016126,189.03,188.89,1.6227]
[1736518938397,19.37016126,189.0,188.86,1.6651]
[1736518939395,19.37016126,188.97,188.81,2.1078]
[1736518939589,3.0921,188.96,188.78,7.17345645]
[1736518939794,19.37016126,188.91,188.78,7.17345645]
[1736518939993,19.37016126,188.88,188.78,7.17345645]
[1736518940590,1.5866,188.87,188.75,1.5944]
[1736518940788,3.1785,188.87,188.75,1.5944]
[1736518940992,1.6157,188.86,188.75,1.5944]
[1736518941195,2.6479,188.84,188.75,1.5944]
[1736518941388,2.6479,188.84,188.74,82.6]
[1736518942295,1.6157,188.86,188.74,82.6]
[1736518942502,2.6483,188.81,188.76,2.6489]
[1736518943196,19.37016126,188.85,188.7,1.5944]
[1736518943592,19.37016126,188.85,188.71,19.37016126]
[1736518943899,19.37016126,188.85,188.78,2.6486]
[1736518944299,2.648,188.83,188.78,2.6487]
[1736518944892,1.6157,188.86,188.74,19.37016126]
[1736518945103,1.6157,188.86,188.77,19.37016126]
[1736518945502,19.37016126,188.94,188.85,2.6477]
[1736518945699,19.37016126,188.94,188.77,19.37016126]
[1736518946601,2.6471,188.89,188.85,2.6477]
[1736518946801,2.6471,188.89,188.77,19.37016126]
[1736518947397,19.37016126,188.94,188.77,19.37016126]
[1736518947398,2.6473,188.88,188.77,19.37016126]
[1736518947801,19.37016126,188.94,188.83,2.6479]
[1736518948003,19.37016126,188.91,188.76,1.6115]
[1736518948906,19.37016126,188.91,188.81,2.6481]
[1736518949098,2.6477,188.86,188.81,2.6481]
[1736518949302,19.37016126,188.91,188.76,1.6115]
[1736518949503,19.37016126,188.91,188.84,2.6478]
[1736518950021,2.6471,188.89,188.77,19.37016126]
[1736518950203,19.37016126,188.94,188.77,19.37016126]
[1736518950611,0.85809513,188.93,188.84,2.6478]
[1736518950803,19.37016126,188.94,188.84,2.6478]
[1736518951004,19.37016126,188.94,188.77,19.37016126]
[1736518951199,2.6474,188.88,188.77,19.37016126]
[1736518951404,19.37016126,188.94,188.77,19.37016126]
[1736518951804,2.6472,188.89,188.77,19.37016126]
[1736518952003,19.37016126,188.94,188.77,19.37016126]
[1736518952400,2.647,188.9,188.77,19.37016126]
[1736518953007,2.6472,188.89,188.84,2.6478]
[1736518953207,2.6472,188.89,188.77,19.37016126]
[1736518954713,2.6472,188.89,188.84,2.6478]
[1736518955103,2.6472,188.89,188.77,19.37016126]
[1736518955311,2.6472,188.89,188.8,2.6483]
[1736518955510,2.6475,188.87,188.77,19.37016126]
[1736518955803,19.37016126,188.91,188.76,1.6115]
[1736518956009,19.37016126,188.91,188.74,19.37016126]
[1736518956211,19.37016126,188.88,188.72,6.12]
[1736518956406,4.8179,188.87,188.71,55.80708708]
[1736518956608,4.8179,188.87,188.71,49.68708708]
[1736518957013,4.8179,188.87,188.74,19.37016126]
[1736518957204,2.6476,188.86,188.83,2.6479]
[1736518957509,4.8179,188.87,188.74,19.37016126]
[1736518958011,2.6476,188.86,188.74,19.37016126]
[1736518959206,4.8179,188.87,188.74,19.37016126]
[1736518959403,2.6477,188.85,188.82,2.6481]
[1736518960336,2.6476,188.86,188.74,19.37016126]
[1736518960515,2.6476,188.86,188.83,2.6479]
[1736518960810,4.8179,188.87,188.83,2.6479]
[1736518960811,7.4653,188.87,188.83,2.6479]
[1736518961513,2.6477,188.86,188.74,19.37016126]
[1736518961817,3.1654,188.87,188.74,19.37016126]
[1736518962004,2.6476,188.86,188.83,2.6479]
[1736518962205,1.5722,188.87,188.77,19.37016126]
[1736518962413,3.2186,188.93,188.83,19.37016126]
[1736518963513,3.2186,188.93,188.81,1.5288]
[1736518963713,2.647,188.91,188.87,2.6473]
[1736518963914,2.647,188.91,188.81,1.5288]
[1736518964617,3.2186,188.93,188.81,1.5288]
[1736518964618,5.8652,188.93,188.81,1.5288]
[1736518964913,87.66508199,189.06,188.86,19.37016126]
[1736518965218,1.6567,189.01,188.89,19.37016126]
[1736518965412,3.1775,189.05,188.92,19.37016126]
[1736518965915,1.6567,189.07,188.95,19.37016126]
[1736518966117,87.66508199,189.08,188.98,19.37016126]
[1736518966608,4.8299,189.13,188.98,19.37016126]
[1736518966816,2.6443,189.1,188.98,19.37016126]
[1736518967314,1.6524,189.13,189.04,19.37016126]
[1736518967531,87.66508199,189.16,189.04,19.37016126]
[1736518967812,2.6439,189.13,189.04,19.37016126]
[1736518968015,3.2657,189.18,189.04,19.37016126]
[1736518968513,3.2657,189.18,189.07,2.6446]
[1736518968713,3.2657,189.18,189.04,19.37016126]
[1736518969415,19.37016126,189.16,189.01,3.1211]
[1736518969621,19.37016126,189.13,188.97,19.37016126]
[1736518970314,19.37016126,189.16,189.0,19.37016126]
[1736518970915,0.85691565,189.15,189.0,19.37016126]
[1736518971114,19.37016126,189.16,188.97,19.37016126]
[1736518971314,19.37016126,189.12,188.96,1.5454]
[1736518971516,1.5851,189.11,188.96,1.5454]
[1736518971716,2.44221908,189.11,188.96,1.5454]
[1736518972017,1.5851,189.11,188.96,1.5454]
[1736518972219,3.2657,189.18,189.01,19.37016126]
[1736518972416,2.44201747,189.17,189.04,19.37016126]
[1736518972613,0.85691747,189.16,189.04,19.37016126]
[1736518972820,4.2284,189.17,189.11,2.644]
[1736518973317,1.5851,189.17,189.05,1.6323]
[1736518973619,2.6437,189.14,189.05,1.6323]
[1736518973810,1.5851,189.17,189.05,1.6323]
[1736518974010,1.5851,189.17,189.05,2.6448]
[1736518974213,0.85685315,189.16,189.02,1.5572]
[1736518974514,19.37016126,189.14,189.0,19.37016126]
[1736518974747,20.95526126,189.17,189.0,19.37016126]
[1736518975021,0.85693541,189.16,189.0,19.37016126]
[1736518975319,1.5851,189.17,189.0,19.37016126]
[1736518975520,1.5851,189.17,189.05,19.37016126]
[1736518976412,2.6439,189.13,189.07,2.6446]
[1736518977021,1.5851,189.17,189.05,19.37016126]
[1736518977217,3.2657,189.18,189.08,19.37016126]
[1736518978121,2.6434,189.16,189.11,2.6441]
[1736518978420,3.2657,189.18,189.05,19.37016126]
[1736518978620,2.6432,189.17,189.12,2.6439]
[1736518978822,2.6432,189.17,189.05,19.37016126]
[1736518978823,3.2657,189.18,189.05,19.37016126]
[1736518979122,2.6432,189.17,189.11,2.6439]
[1736518979422,2.6432,189.17,189.05,19.37016126]
[1736518979623,2.6432,189.17,189.12,2.6438]
[1736518979826,4.2955,189.18,189.08,19.37016126]
[1736518980118,1.6524,189.18,189.08,19.37016126]
[1736518980317,2.6435,189.15,189.08,19.37016126]
[1736518980717,1.6524,189.18,189.09,2.6443]
[1736518980913,1.6524,189.18,189.05,19.37016126]
[1736518981413,2.6432,189.17,189.12,2.6438]
[1736518983030,1.605,189.24,189.11,19.37016126]
[1736518983221,3.1594,189.24,189.11,19.37016126]
[1736518983626,2.6426,189.22,189.11,19.37016126]
[1736518983822,3.1594,189.24,189.14,19.37016126]
[1736518984016,1.5544,189.24,189.14,19.37016126]
[1736518984217,5.2794,189.43,189.18,19.37016126]
[1736518984428,19.37016126,189.35,189.18,19.37016126]
[1736518984620,2.641,189.33,189.28,2.6417]
[1736518984823,19.37016126,189.38,189.21,19.37016126]
[1736518985034,19.37016126,189.31,189.12,0.479]
[1736518985325,19.37016126,189.27,189.13,1.5824]
[1736518985720,2.6424,189.23,189.13,1.5824]
[1736518986229,19.37016126,189.27,189.13,1.5824]
[1736518986625,19.37016126,189.27,189.1,1.5456]
[1736518986932,19.37016126,189.24,189.1,1.5456]
[1736518987128,24.06446126,189.28,189.1,1.5456]
[1736518987334,24.06446126,189.28,189.12,19.37016126]
[1736518987335,6.1,189.27,189.12,19.37016126]
[1736518988027,6.1,189.27,189.16,2.6433]
[1736518988334,6.1,189.27,189.12,19.37016126]
[1736518988623,24.06446126,189.28,189.17,2.6432]
[1736518988828,24.06446126,189.28,189.1,1.5456]
[1736518988830,19.37016126,189.37,189.18,25.47016126]
[1736518989034,3.1366,189.35,189.19,9.1783]
[1736518989325,19.37016126,189.34,189.19,3.0783]
[1736518989823,2.6418,189.28,189.19,3.0783]
[1736518990023,2.6418,189.28,189.23,2.6424]
[1736518990530,2.6415,189.3,189.24,2.6421]
[1736518990833,2.6415,189.3,189.21,19.37016126]
[1736518991424,3.1366,189.35,189.19,3.0783]
[1736518991425,19.37016126,189.34,189.23,2.6422]
[1736518991629,19.37016126,189.34,189.19,3.0783]
[1736518992034,2.6416,189.29,189.21,19.37016126]
[1736518992351,3.1366,189.35,189.21,19.37016126]
[1736518992534,2.6414,189.31,189.26,2.6418]
[1736518993734,3.1366,189.35,189.27,2.6418]
[1736518994529,3.1366,189.35,189.24,19.37016126]
[1736518994841,6.1,189.41,189.27,19.37016126]
[1736518995036,2.6403,189.38,189.33,2.6409]
[1736518995336,1.5532,189.4,189.27,25.47016126]
[1736518995728,2.6402,189.39,189.33,2.6409]
[1736518996138,1.5532,189.4,189.33,2.6409]
[1736518996528,1.5532,189.4,189.27,25.47016126]
[1736518996736,2.6404,189.37,189.27,25.47016126]
[1736518996936,1.5532,189.4,189.28,3.2341]
[1736518997743,2.6404,189.37,189.32,2.6411]
[1736518998737,2.6407,189.35,189.3,2.6413]
[1736518998942,1.5532,189.4,189.24,19.37016126]
[1736518998943,20.92336126,189.4,189.24,19.37016126]
[1736518999143,2.6413,189.31,189.26,2.6419]
[1736518999735,2.6414,189.3,189.21,19.37016126]
[1736518999936,1.6597,189.35,189.21,19.37016126]
[1736519000340,2.6413,189.32,189.21,19.37016126]
[1736519001143,2.6413,189.32,189.26,2.6419]
[1736519001644,19.37016126,189.34,189.2,2.6427]
[1736519001840,21.02726126,189.31,189.15,19.37016126]
[1736519002041,2.6425,189.22,189.15,19.37016126]
[1736519002343,19.37016126,189.23,189.1,71.00485634]
[1736519002546,1.6571,189.21,189.1,71.00485634]
[1736519003039,1.6571,189.21,189.1,7.17345645]
[1736519003342,19.37016126,189.17,189.1,7.17345645]
[1736519003539,19.37016126,189.17,189.02,28.69382582]
[1736519003844,19.37016126,189.19,189.04,19.37016126]
[1736519004141,19.37016126,189.19,189.06,2.6446]
[1736519004337,19.37016126,189.19,189.04,19.37016126]
[1736519004537,19.37016126,189.19,189.08,2.6445]
[1736519004847,19.37016126,189.19,189.04,19.37016126]
[1736519004848,2.6438,189.13,189.04,19.37016126]
[1736519005141,19.37016126,189.19,189.07,2.6446]
[1736519005442,2.6438,189.13,189.04,19.37016126]
[1736519005845,19.37016126,189.19,189.08,2.6445]
[1736519006043,1.6571,189.21,189.04,19.37016126]
[1736519006343,1.6571,189.21,189.1,19.37016126]
[1736519006647,1.6571,189.21,189.13,19.37016126]
[1736519006839,2.6422,189.24,189.13,19.37016126]
[1736519007039,4.7738,189.27,189.2,2.6428]
[1736519007237,2.6421,189.26,189.13,19.37016126]
[1736519007438,4.7738,189.27,189.16,19.37016126]
[1736519007642,4.7738,189.27,189.19,2.6428]
[1736519008241,2.6423,189.24,189.17,2.6431]
[1736519008442,4.7738,189.27,189.13,19.37016126]
[1736519008746,4.7738,189.27,189.09,22.97816126]
[1736519008944,19.37016126,189.25,189.09,22.50306126]
[1736519009341,2.6429,189.19,189.14,2.6436]
[1736519009543,19.37016126,189.25,189.09,22.50306126]
[1736519009848,19.37016126,189.22,189.06,19.37016126]
[1736519010045,25.45016126,189.22,189.06,19.37016126]
[1736519010550,25.45016126,189.22,189.08,2.6443]
[1736519011241,25.45016126,189.22,189.06,19.37016126]
[1736519012354,19.37016126,189.22,189.06,19.37016126]
[1736519012549,2.6432,189.18,189.12,2.6439]
[1736519012850,2.6432,189.18,189.09,19.37016126]
[1736519013050,2.6432,189.18,189.12,2.6438]
[1736519013350,30.22396126,189.27,189.09,19.37016126]
[1736519013752,2.6431,189.19,189.13,2.6437]
[1736519013966,30.22396126,189.27,189.06,19.37016126]
[1736519014152,30.22396126,189.27,189.09,2.6442]
[1736519014153,19.37016126,189.22,189.09,2.6442]
[1736519014845,19.37016126,189.22,189.06,19.37016126]
[1736519015040,2.6439,189.12,189.06,19.37016126]
[1736519016243,19.37016126,189.22,189.06,19.37016126]
[1736519016450,2.6438,189.14,189.06,19.37016126]
[1736519016653,19.37016126,189.22,189.1,2.6442]
[1736519017049,2.6435,189.15,189.1,2.6442]
[1736519017249,19.37016126,189.22,189.1,2.6442]
[1736519017543,0.85673938,189.21,189.06,19.37016126]
[1736519018053,2.6432,189.18,189.06,19.37016126]
[1736519018251,1.6009,189.17,189.1,2.6442]
[1736519018447,1.6009,189.17,189.06,19.37016126]
[1736519018647,2.6438,189.13,189.06,19.37016126]
[1736519018946,1.6009,189.17,189.08,2.6445]
[1736519019554,2.6439,189.13,189.08,2.6445]
[1736519019947,1.6009,189.17,189.06,2.6446]
[1736519020147,22.52756126,189.16,189.02,1.6188]
[1736519021457,2.6444,189.09,189.04,2.6449]
[1736519022561,2.6444,189.09,189.05,2.6449]
[1736519023654,2.6442,189.11,189.03,19.37016126]
[1736519023851,3.1574,189.16,189.03,19.37016126]
[1736519025260,2.644,189.12,189.03,2.6451]
[1736519025454,22.52756126,189.16,189.01,82.44]
[1736519025759,3.1574,189.16,189.01,82.44]
[1736519026357,2.6446,189.08,189.04,2.6449]
[1736519026561,2.6446,189.08,189.01,82.44]
[1736519027261,22.52756126,189.16,189.05,2.6449]
[1736519027763,0.8569003,189.15,189.05,2.6449]
[1736519027957,2.6444,189.09,189.05,2.6449]
[1736519028161,22.52756126,189.16,189.01,82.44]
[1736519028463,0.85690375,189.15,189.01,82.44]
[1736519028762,19.37016126,189.13,189.0,2.6455]
[1736519028959,6.08,189.12,189.0,2.6455]
[1736519029161,2.645,189.05,188.97,20.97866126]
[1736519030361,2.6446,189.07,189.03,2.645]
[1736519030762,6.08,189.12,188.97,20.97866126]
[1736519030961,2.6447,189.07,188.97,20.97866126]
[1736519031369,6.08,189.12,188.97,20.97866126]
[1736519031555,2.645,189.04,188.97,20.97866126]
[1736519032160,2.6449,189.05,189.01,2.6455]
[1736519032767,6.08,189.12,188.97,20.97866126]
[1736519033060,0.85711207,189.11,188.97,19.37016126]
[1736519033266,19.37016126,189.04,188.88,101.89016126]
[1736519033464,10.7583,189.03,188.88,101.89016126]
[1736519033862,2.6461,188.97,188.85,2.6476]
[1736519034062,19.37016126,188.98,188.84,7.17345645]
[1736519034263,19.37016126,188.95,188.84,7.17345645]
[1736519034456,19.37016126,188.95,188.8,2.6483]
[1736519034457,7.6174,188.94,188.8,2.6483]
[1736519034657,7.6174,188.94,188.76,28.69382582]
[1736519034658,7.6174,188.94,188.76,48.06398708]
[1736519034865,19.37016126,188.92,188.76,48.06398708]
[1736519035057,19.37016126,188.92,188.76,19.37016126]
[1736519035266,3.153,188.93,188.76,19.37016126]
[1736519035469,3.153,188.93,188.79,19.37016126]
[1736519035662,2.6474,188.88,188.82,2.648]
[1736519036064,2.6473,188.88,188.8,2.6483]
[1736519036267,19.37016126,188.92,188.76,19.37016126]
[1736519036572,2.6474,188.88,188.76,19.37016126]
[1736519036870,19.37016126,188.92,188.79,2.6484]
[1736519037269,2.6474,188.87,188.76,19.37016126]
[1736519037472,19.37016126,188.92,188.76,19.37016126]
[1736519038165,19.37016126,188.92,188.75,82.52]
[1736519038761,2.6479,188.84,188.77,2.6487]
[1736519038966,19.37016126,188.92,188.77,2.6487]
[1736519039166,0.85816502,188.91,188.75,82.52]
[1736519039372,19.37016126,188.92,188.75,82.52]
[1736519039775,2.6473,188.88,188.82,2.648]
[1736519039969,19.37016126,188.89,188.75,82.52]
[1736519040273,2.648,188.84,188.78,2.6487]
[1736519040474,2.648,188.84,188.75,82.52]
[1736519040869,19.37016126,188.89,188.75,82.52]
[1736519041065,19.37016126,188.89,188.73,3.1196]
[1736519041476,19.37016126,188.89,188.73,22.48976126]
[1736519041973,2.6477,188.85,188.73,22.48976126]
[1736519042177,19.37016126,188.89,188.73,22.48976126]
[1736519042377,19.37016126,188.91,188.76,19.37016126]
[1736519042782,19.37016126,188.91,188.73,22.48976126]
[1736519043286,2.648,188.83,188.77,2.6487]
[1736519043885,2.6482,188.82,188.73,22.48976126]
[1736519044483,2.6479,188.84,188.73,22.48976126]
[1736519045182,2.6481,188.83,188.77,2.6487]
[1736519045378,3.153,188.93,188.76,19.37016126]
[1736519045585,3.153,188.93,188.73,22.48976126]
[1736519045876,1.5956,188.93,188.89,2.6471]
[1736519046183,1.5956,188.93,188.82,19.37016126]
[1736519047074,1.5956,188.93,188.83,3.1128]
[1736519047482,6.08,188.98,188.83,3.1128]
[1736519047784,1.6396,188.99,188.85,19.37016126]
[1736519048782,19.37016126,188.97,188.83,3.1128]
[1736519049475,6.08,188.98,188.83,3.1128]
[1736519049682,87.37616058,189.19,188.93,19.37016126]
[1736519049876,1.6202,189.08,188.96,19.37016126]
[1736519050280,1.6202,189.08,188.96,22.01626126]
[1736519050480,1.6202,189.08,188.96,19.37016126]
[1736519050987,1.6202,189.08,188.94,1.6337]
[1736519051381,19.37016126,189.06,188.92,1.6106]
[1736519051676,7.6366,189.05,188.88,19.37016126]
[1736519051877,7.6366,189.05,188.91,19.37016126]
[1736519052076,7.6366,189.05,188.88,19.37016126]
[1736519052487,2.6459,188.98,188.88,2.6473]
[1736519052690,19.37016126,189.03,188.85,19.37016126]
[1736519052982,7.6366,189.05,188.84,3.7202]
[1736519052983,2.6457,189.0,188.93,2.6465]
[1736519053188,2.6457,189.0,188.88,19.37016126]
[1736519053189,1.6238,189.02,188.91,19.37016126]
[1736519053488,1.5566,189.05,188.94,19.37016126]
[1736519053690,1.5566,189.05,188.95,2.6463]
[1736519053882,1.5566,189.05,188.91,19.37016126]
[1736519054282,2.6458,188.99,188.93,2.6464]
[1736519054482,1.5566,189.05,188.93,2.6464]
[1736519054884,2.6458,188.99,188.93,2.6464]
[1736519055288,1.5566,189.05,188.93,2.6464]
[1736519055490,1.5566,189.05,188.88,19.37016126]
[1736519055788,19.37016126,189.03,188.88,19.37016126]
[1736519056288,19.37016126,189.03,188.84,3.7202]
[1736519056289,19.37016126,189.03,188.85,19.37016126]
[1736519057489,19.37016126,189.03,188.87,2.6474]
[1736519057787,19.37016126,189.03,188.85,19.37016126]
[1736519058292,19.37016126,189.13,188.95,19.37016126]
[1736519058590,1.6304,189.07,188.95,19.37016126]
[1736519058790,19.37016126,189.06,188.84,0.4759]
[1736519058982,19.37016126,189.03,188.87,19.37016126]
[1736519059183,2.6457,189.0,188.91,2.6467]
[1736519059385,19.37016126,189.06,188.9,19.37016126]
[1736519059892,19.37016126,189.03,188.88,1.4974]
[1736519060489,19.37016126,189.06,188.88,1.4974]
[1736519060682,2.6461,188.97,188.92,2.6467]
[1736519060890,6.08,189.01,188.88,1.4974]
[1736519061093,1.551,189.0,188.88,1.4974]
[1736519061391,2.6459,188.98,188.93,2.6465]
[1736519061588,1.551,189.0,188.88,1.4974]
[1736519062388,1.551,189.0,188.9,2.647]
[1736519062988,2.6463,188.96,188.91,2.6468]
[1736519063392,2.6463,188.96,188.88,1.4974]
[1736519063589,1.551,189.0,188.88,1.4974]
[1736519063789,1.5024,188.99,188.88,1.4974]
[1736519064094,6.08,189.01,188.88,1.4974]
[1736519065793,19.37016126,189.0,188.84,20.89726126]
[1736519066190,6.08,189.01,188.87,19.37016126]
[1736519066697,2.6462,188.96,188.91,2.6468]
[1736519066991,6.06,189.02,188.9,19.37016126]
[1736519067197,6.06,189.02,188.93,2.6464]
[1736519067813,22.59376126,189.06,188.9,19.37016126]
[1736519067995,22.59376126,189.06,188.84,20.89726126]
[1736519067996,9.2836,189.06,188.93,19.37016126]
[1736519068196,2.645,189.04,188.93,19.37016126]
[1736519068502,1.6304,189.07,189.0,2.6455]
[1736519068899,2.645,189.05,189.0,2.6455]
[1736519069600,1.6304,189.07,188.96,19.37016126]